bitfinex/quotes_ETHUSD_20240709
["timestamp","ask_amount","ask_price","bid_price","bid_amount"]
[1720493419937,2.3789,3057.1,3056.6,3.27159]
[1720493420140,2.3789,3057.1,3056.3,3.27192]
[1720493420312,2.61679,3057.1,3056.3,3.27192]
[1720493420505,2.61679,3057.1,3056.1,3.27214]
[1720493420710,2.3789,3057.1,3056.1,3.27214]
[1720493420912,2.3789,3057.1,3056.2,3.27193]
[1720493421132,2.3789,3057.1,3055.9,3.27233]
[1720493421345,3.451,3056.8,3055.4,10.71281]
[1720493421521,4.7438,3056.7,3055.5,3.2727]
[1720493421843,4.7438,3056.7,3055.7,3.27256]
[1720493422041,2.4538,3056.7,3056.1,3.27214]
[1720493422246,2.4538,3056.7,3056.1,3.27207]
[1720493422707,2.4538,3056.7,3056.2,3.272]
[1720493422913,2.4538,3056.7,3056.3,3.27189]
[1720493423416,2.4538,3056.7,3056.0,3.27224]
[1720493423615,2.69918,3056.7,3055.5,3.27275]
[1720493423922,4.98918,3056.7,3055.7,3.27249]
[1720493425046,8.44018,3056.7,3054.8,8.751933]
[1720493425250,2.29,3056.2,3055.0,3.27322]
[1720493425492,2.4121,3056.1,3054.8,3.2735]
[1720493425637,2.2532,3056.0,3054.7,3.27364]
[1720493425825,2.72341,3056.0,3054.7,3.27364]
[1720493426318,2.72341,3056.0,3054.4,1.312108]
[1720493426518,2.72341,3056.0,3054.9,3.27341]
[1720493426717,2.72341,3056.0,3054.5,0.06546266]
[1720493426924,2.72341,3056.0,3055.8,3.27237]
[1720493426925,2.2532,3056.0,3055.8,3.27237]
[1720493427152,2.2532,3056.0,3055.3,3.27292]
[1720493427321,2.2532,3056.0,3055.1,7.44]
[1720493427649,2.47852,3056.0,3054.8,3.27345]
[1720493427856,2.47852,3056.0,3054.7,3.27363]
[1720493428353,2.47852,3056.0,3054.5,3.27385]
[1720493428354,2.2746,3055.7,3054.5,3.27385]
[1720493428532,2.29,3055.4,3054.4,10.71394]
[1720493428732,0.229,3055.3,3054.4,3.27394]
[1720493429131,0.229,3055.3,3053.8,1.312355]
[1720493429337,0.229,3055.3,3054.2,3.27417]
[1720493429652,0.229,3055.3,3054.0,3.27435]
[1720493429819,0.229,3055.3,3054.3,3.27406]
[1720493430219,0.2519,3055.2,3054.3,3.27406]
[1720493431356,2.4053,3055.1,3054.2,3.27417]
[1720493431651,2.67102,3055.1,3054.0,3.27437]
[1720493431841,2.4053,3055.1,3054.2,3.27407]
[1720493432044,0.06152467,3055.0,3054.2,3.27407]
[1720493432440,0.06152467,3055.0,3054.2,3.27411]
[1720493432653,2.29,3055.9,3054.3,0.06547228]
[1720493432846,2.3837,3055.4,3055.0,3.27329]
[1720493433050,2.3837,3055.4,3054.7,3.27353]
[1720493433243,0.06261445,3055.3,3054.7,3.27353]
[1720493433455,0.06261445,3055.3,3054.8,0.06546307]
[1720493433732,0.06261445,3055.3,3055.1,3.27319]
[1720493434503,2.3837,3055.4,3055.1,3.27319]
[1720493435184,2.3837,3055.4,3054.8,3.27352]
[1720493435185,0.478217,3055.3,3054.8,3.27352]
[1720493435504,0.0625682,3055.2,3054.9,3.27342]
[1720493435800,0.478217,3055.3,3054.9,3.27342]
[1720493435985,0.478217,3055.3,3054.8,3.27351]
[1720493436190,0.0625682,3055.2,3054.8,3.27351]
[1720493436595,0.478217,3055.3,3054.8,3.27351]
[1720493436899,0.06252194,3055.1,3054.8,3.27351]
[1720493437096,0.478217,3055.3,3054.8,3.27351]
[1720493437097,0.0625682,3055.2,3054.8,3.27351]
[1720493437299,0.478217,3055.3,3054.4,10.71389]
[1720493437484,0.478217,3055.3,3054.4,3.27389]
[1720493437688,0.478217,3055.3,3054.7,3.27363]
[1720493437878,0.0625682,3055.2,3054.8,3.2735]
[1720493438285,0.478217,3055.3,3054.8,3.2735]
[1720493438493,0.06256887,3055.1,3054.6,3.27364]
[1720493438806,0.478217,3055.3,3054.6,3.27364]
[1720493439173,0.06261513,3055.2,3054.2,3.27411]
[1720493439387,0.06261513,3055.2,3054.0,3.27435]
[1720493439710,0.38368751,3055.2,3054.0,3.27435]
[1720493439909,0.06261513,3055.2,3054.5,3.27378]
[1720493440117,0.06261513,3055.2,3054.7,3.27354]
[1720493440878,0.06261513,3055.2,3054.8,0.06546678]
[1720493441077,0.478217,3055.3,3055.2,3.2731]
[1720493441309,0.478217,3055.3,3055.2,6.5462]
[1720493441622,0.478217,3055.3,3055.1,3.27321]
[1720493442980,0.478217,3055.3,3054.6,3.27368]
[1720493443719,0.478217,3055.3,3055.1,3.27317]
[1720493443921,0.06259589,3055.2,3055.1,3.27317]
[1720493444280,0.478217,3055.3,3055.2,3.2731]
[1720493444976,0.478217,3055.3,3055.0,3.2733]
[1720493444977,0.478217,3055.3,3054.8,3.27349]
[1720493445209,0.06262446,3055.2,3054.8,3.27349]
[1720493445573,0.478217,3055.3,3054.6,3.27371]
[1720493445980,0.478217,3055.3,3054.8,3.2735]
[1720493446317,0.06251679,3055.2,3055.1,3.27321]
[1720493446832,0.478217,3055.3,3055.1,3.27321]
[1720493446833,0.478217,3055.3,3055.2,3.2731]
[1720493447604,0.478217,3055.3,3055.2,6.61165437]
[1720493447918,0.478217,3055.3,3055.2,6.61165491]
[1720493448088,2.3925,3056.4,3056.3,3.27193]
[1720493448284,2.29,3057.1,3056.3,3.27193]
[1720493448512,2.3925,3057.0,3056.4,3.27175]
[1720493450415,0.05672336,3056.9,3056.4,3.27175]
[1720493450584,0.05672336,3056.9,3056.8,3.27139]
[1720493450782,0.05672336,3056.9,3056.8,9.81417]
[1720493451102,0.05672336,3056.9,3056.8,16.63556]
[1720493451290,2.3925,3058.3,3057.8,3.27026]
[1720493451496,2.3925,3058.3,3057.9,3.33557719]
[1720493451693,0.04928385,3058.2,3058.1,3.26992]
[1720493451998,2.3925,3058.3,3058.1,3.26992]
[1720493452179,2.3925,3058.3,3057.9,3.27018]
[1720493452180,2.3925,3058.3,3058.2,3.26989]
[1720493452917,2.3925,3058.3,3057.7,3.27042]
[1720493453125,2.3925,3058.3,3058.0,3.2701]
[1720493453526,2.63175,3058.3,3057.6,3.27045]
[1720493453849,2.63175,3058.3,3057.8,3.27032]
[1720493453850,0.05020736,3058.2,3057.8,3.27032]
[1720493454139,0.05020736,3058.2,3058.0,3.2701]
[1720493454295,2.3925,3058.3,3058.0,3.2701]
[1720493454729,2.3925,3058.3,3057.8,3.27032]
[1720493454891,2.3925,3058.3,3057.9,3.27019]
[1720493455091,2.3925,3058.3,3058.0,3.27002]
[1720493456193,2.3925,3058.3,3058.1,3.26998]
[1720493456504,2.4997,3058.8,3058.2,0.06539641]
[1720493456846,2.4997,3058.8,3057.4,3.27075]
[1720493456847,0.0488406,3058.7,3058.6,3.26945]
[1720493457219,2.4997,3058.8,3058.7,3.26936]
[1720493457410,2.4997,3059.6,3058.7,3.26936]
[1720493457617,2.4997,3059.6,3058.8,0.06538333]
[1720493457829,2.4997,3059.6,3059.0,3.26899]
[1720493458151,2.4997,3059.6,3059.3,3.26871]
[1720493458353,2.4997,3059.6,3059.1,3.26884]
[1720493458652,2.4997,3059.6,3058.7,3.26936]
[1720493458653,2.74967,3059.6,3058.7,3.26936]
[1720493459235,2.74967,3059.6,3058.8,0.06537588]
[1720493459400,2.74967,3059.6,3059.0,3.26903]
[1720493460027,2.74967,3059.6,3058.8,3.26925]
[1720493460324,2.74967,3059.6,3058.4,0.0653745]
[1720493460325,0.274967,3059.5,3058.4,3.26965]
[1720493460529,0.274967,3059.5,3058.3,3.26978]
[1720493460741,0.274967,3059.5,3058.7,3.26933]
[1720493460901,2.4997,3059.6,3058.9,3.26914]
[1720493461105,2.4997,3059.6,3059.0,0.06537679]
[1720493461302,0.04734046,3059.5,3059.2,3.26879]
[1720493461551,0.04734046,3059.5,3058.4,6.33496648]
[1720493461863,0.04734046,3059.5,3059.0,3.26896]
[1720493462006,2.5672,3060.1,3059.0,3.26896]
[1720493462209,0.04754641,3060.0,3058.5,3.26947]
[1720493462436,2.3627,3059.9,3058.4,3.26968]
[1720493462635,0.28959664,3059.8,3058.4,3.26968]
[1720493462839,2.3627,3059.7,3058.3,6.26973]
[1720493463056,2.3627,3059.7,3058.4,3.8196]
[1720493463338,2.3627,3059.7,3057.9,3.27014]
[1720493463339,5.8983,3059.6,3057.9,3.27014]
[1720493463644,2.29,3059.2,3057.7,3.27041]
[1720493463840,2.4473,3058.8,3057.1,7.44]
[1720493464043,0.24473,3058.7,3058.1,3.26998]
[1720493464246,0.2917258,3058.7,3058.1,3.26998]
[1720493464428,0.0469958,3058.7,3058.2,0.06539354]
[1720493464617,0.0469958,3058.7,3058.6,6.53892]
[1720493464823,2.4137,3059.4,3059.0,3.26898]
[1720493465342,0.04765827,3059.3,3058.8,3.26923]
[1720493465516,0.04765827,3059.3,3058.6,3.26946]
[1720493465720,0.24613583,3059.3,3058.4,3.26964]
[1720493465925,0.24613583,3059.3,3058.5,3.26948]
[1720493466110,0.24613583,3059.3,3058.4,3.26964]
[1720493466312,0.24613583,3059.3,3058.2,10.70982]
[1720493466641,0.26598358,3059.2,3058.1,3.26999]
[1720493466808,0.26598358,3059.2,3057.9,3.27019]
[1720493467218,0.04742172,3059.1,3057.7,3.2704]
[1720493467453,2.2959,3059.0,3057.4,7.44]
[1720493467748,0.57943217,3058.9,3057.5,3.27055]
[1720493467944,0.62682886,3058.9,3057.5,3.27055]
[1720493468564,0.62682886,3058.9,3058.0,3.27004]
[1720493468751,0.04739669,3058.9,3058.0,3.27004]
[1720493470071,0.04739669,3058.9,3057.5,3.27064]
[1720493470072,0.04739669,3058.9,3058.8,3.26925]
[1720493470219,0.04739669,3058.9,3058.8,6.5385]
[1720493470413,2.4886,3059.5,3058.8,6.5385]
[1720493470714,2.4886,3059.5,3059.0,3.26902]
[1720493470938,2.4886,3059.5,3059.3,3.26869]
[1720493471148,2.4667,3060.3,3059.7,3.26829]
[1720493471547,0.04255507,3060.2,3059.5,3.2685]
[1720493471712,0.04255507,3060.2,3059.3,3.2687]
[1720493471918,2.4667,3060.3,3059.3,3.2687]
[1720493472124,2.4667,3060.3,3058.9,10.70912]
[1720493472349,0.24667,3060.2,3058.9,3.26912]
[1720493472657,0.24667,3060.2,3058.7,3.26935]
[1720493472658,0.28915601,3060.2,3058.7,3.26935]
[1720493472818,2.29,3060.0,3058.4,3.0]
[1720493473022,2.29,3060.0,3058.5,0.55]
[1720493473246,0.51818469,3059.9,3058.7,3.26935]
[1720493473478,0.47567,3059.9,3059.1,3.26893]
[1720493473754,0.47567,3059.9,3058.9,3.26907]
[1720493473929,0.04246856,3059.8,3058.9,3.26907]
[1720493474129,0.04246856,3059.8,3058.6,3.26943]
[1720493474338,0.04246856,3059.8,3058.5,3.26957]
[1720493474339,2.4598,3059.7,3058.5,3.26957]
[1720493474551,0.25022686,3059.6,3058.5,3.26957]
[1720493474723,0.29263022,3059.6,3058.4,3.26966]
[1720493475059,0.29263022,3059.6,3057.7,7.44]
[1720493475060,2.4886,3059.3,3057.7,10.7104]
[1720493475357,2.4886,3059.1,3057.8,3.27032]
[1720493475686,2.3046,3058.9,3057.6,3.27053]
[1720493475822,2.3046,3058.9,3057.4,3.27071]
[1720493475823,5.7556,3058.9,3057.4,3.27071]
[1720493476024,5.7556,3058.9,3057.2,3.27093]
[1720493476025,2.3046,3058.7,3057.2,3.27093]
[1720493476362,2.3046,3058.7,3057.4,3.27074]
[1720493476653,0.04193692,3058.6,3057.9,3.27013]
[1720493476857,0.04193692,3058.6,3057.1,3.271]
[1720493477061,0.04193692,3058.6,3058.1,3.26992]
[1720493477298,2.3046,3058.7,3058.1,3.26992]
[1720493477443,2.3046,3058.7,3058.4,3.26967]
[1720493477630,0.358684,3058.9,3058.2,0.0653924]
[1720493477969,0.358684,3058.9,3058.6,3.26938]
[1720493478138,0.04193119,3058.8,3058.2,3.26985]
[1720493478750,0.358684,3058.9,3057.5,3.0]
[1720493478953,2.4295,3058.8,3057.7,3.27034]
[1720493479152,2.7083184,3058.8,3057.7,3.27034]
[1720493479564,0.0420137,3058.7,3057.8,0.06540199]
[1720493479779,0.0420137,3058.7,3058.0,3.27008]
[1720493479974,0.0420137,3058.7,3058.1,3.26989]
[1720493480278,2.4295,3058.8,3058.2,3.26988]
[1720493480667,0.04196061,3058.7,3058.2,3.26988]
[1720493481047,0.04196061,3058.7,3058.4,3.26967]
[1720493481461,2.4295,3058.8,3058.2,3.26988]
[1720493481744,0.04190434,3058.6,3058.5,3.26957]
[1720493481944,0.358684,3058.9,3058.6,3.26946]
[1720493481945,0.04217319,3058.7,3058.6,3.26946]
[1720493482142,0.358684,3058.9,3058.8,3.26925]
[1720493482347,0.358684,3058.9,3058.8,6.60388053]
[1720493482547,0.40073058,3058.9,3058.8,7.0885]
[1720493483047,0.358684,3058.9,3058.8,7.0885]
[1720493483587,0.358684,3058.9,3058.8,16.627]
[1720493483878,2.2831,3059.9,3059.6,3.26833]
[1720493484045,2.2831,3059.9,3059.7,3.26828]
[1720493484252,0.04245687,3059.8,3059.7,3.26828]
[1720493484482,2.2831,3059.9,3059.5,3.26847]
[1720493484683,2.2831,3059.9,3058.9,7.44]
[1720493484684,2.2831,3059.9,3059.1,3.26891]
[1720493484879,2.51141,3059.9,3059.1,3.26891]
[1720493485101,2.51141,3059.9,3058.9,3.26912]
[1720493485309,2.2831,3059.9,3059.0,0.06537401]
[1720493485514,0.0426753,3059.8,3059.2,3.26882]
[1720493485799,0.0426753,3059.8,3059.3,0.06537059]
[1720493486004,2.2831,3059.9,3059.4,3.26853]
[1720493486180,2.2831,3059.9,3059.2,3.26882]
[1720493486381,2.51141,3059.9,3059.0,3.26902]
[1720493486582,2.51141,3059.9,3058.6,3.26939]
[1720493486782,2.51141,3059.9,3058.4,10.70958]
[1720493486994,2.3555,3059.7,3058.4,7.44]
[1720493487593,0.04253428,3059.6,3058.4,7.44]
[1720493488010,0.04253428,3059.6,3058.4,3.26968]
[1720493489133,0.04253428,3059.6,3058.6,3.26942]
[1720493489414,0.04253428,3059.6,3058.7,3.26934]
[1720493489605,0.04253428,3059.6,3058.8,3.26915]
[1720493490723,0.04253428,3059.6,3058.6,3.26939]
[1720493491070,0.119372,3058.9,3058.7,3.26929]
[1720493491420,0.119372,3058.9,3058.6,3.26939]
[1720493491615,0.119372,3058.9,3058.7,3.26934]
[1720493493066,0.119372,3058.9,3057.8,3.0]
[1720493493067,2.2623,3058.8,3058.3,3.26971]
[1720493493271,2.2623,3058.8,3058.4,3.26961]
[1720493493655,2.2623,3058.8,3058.2,3.26985]
[1720493494040,2.2623,3058.8,3058.3,0.06538606]
[1720493494236,0.119372,3058.9,3058.8,3.26925]
[1720493494512,7.36,3060.2,3059.2,3.2688]
[1720493494513,2.2623,3059.9,3059.2,3.2688]
[1720493494621,2.2623,3059.9,3059.5,3.26842]
[1720493496181,2.2623,3059.9,3059.6,3.26834]
[1720493496464,2.2623,3060.9,3059.8,3.26813]
[1720493496620,2.3724655,3061.4,3061.0,3.26689]
[1720493497680,2.60971205,3061.4,3060.8,3.2671]
[1720493497860,2.60971205,3061.4,3060.4,3.26751]
[1720493498151,2.2623,3061.2,3059.6,11.37911789]
[1720493498363,2.2623,3061.2,3059.7,0.06535632]
[1720493498517,0.03580874,3061.1,3060.0,3.26797]
[1720493498725,0.22981087,3061.0,3060.0,3.26797]
[1720493499157,0.03556841,3060.9,3060.0,3.26797]
[1720493499519,2.2541,3060.8,3059.9,3.26807]
[1720493499718,2.2541,3060.8,3060.0,3.26796]
[1720493499930,0.03557499,3060.7,3060.2,3.26775]
[1720493500380,2.2541,3060.8,3060.6,3.26724]
[1720493500652,2.2541,3061.3,3060.8,3.2671]
[1720493500829,2.2541,3061.3,3060.7,3.26716]
[1720493501032,0.03595526,3061.2,3060.7,3.26716]
[1720493501226,0.03595526,3061.2,3060.8,3.2671]
[1720493501424,2.2541,3061.3,3060.8,3.2671]
[1720493501833,0.03602052,3061.2,3060.8,3.2671]
[1720493502037,2.2541,3061.3,3060.8,3.2671]
[1720493502238,0.03602052,3061.2,3060.7,3.26722]
[1720493502419,2.2541,3061.3,3060.7,3.26722]
[1720493502861,2.2541,3061.3,3060.5,3.26742]
[1720493503044,2.49052655,3061.3,3060.5,3.26742]
[1720493503268,2.49052655,3061.3,3060.3,3.26762]
[1720493503433,2.49052655,3061.3,3060.1,3.26786]
[1720493503434,2.49052655,3061.3,3060.1,3.26778]
[1720493503625,2.49052655,3061.3,3060.2,3.26775]
[1720493503825,2.49052655,3061.3,3060.3,3.26763]
[1720493504022,0.2600692,3061.2,3060.1,3.26784]
[1720493504633,0.2600692,3061.2,3060.2,3.26774]
[1720493504838,2.2541,3061.3,3060.2,3.26774]
[1720493505032,0.03614979,3061.2,3060.4,3.26746]
[1720493505261,0.03614979,3061.2,3060.5,3.26743]
[1720493506956,0.03614979,3061.2,3060.7,3.26714]
[1720493507159,0.03614979,3061.2,3060.9,3.26691]
[1720493507359,0.03614979,3061.2,3060.2,3.0]
[1720493507360,0.03614979,3061.2,3061.1,3.26679]
[1720493507573,0.03614979,3061.2,3060.5,3.26734]
[1720493507574,0.1101655,3061.4,3060.9,3.26694]
[1720493507927,0.03644818,3061.3,3060.9,3.26694]
[1720493508158,0.03644818,3061.3,3061.0,3.26687]
[1720493511047,0.03644818,3061.3,3060.6,3.2673]
[1720493511349,0.1101655,3061.4,3060.7,3.26722]
[1720493511671,0.03656492,3061.3,3060.7,3.26722]
[1720493511861,0.03656492,3061.3,3060.5,3.26742]
[1720493512057,0.1101655,3061.4,3060.7,3.26714]
[1720493512447,0.03656492,3061.3,3060.2,10.44]
[1720493512652,0.1101655,3061.4,3061.1,3.26672]
[1720493512840,0.03646617,3061.3,3061.1,3.26672]
[1720493513256,0.03646617,3061.3,3061.2,3.33201852]
[1720493513458,0.1101655,3061.4,3061.3,3.26658]
[1720493513647,0.1101655,3061.4,3061.3,6.5984824]
[1720493513954,0.14648268,3061.4,3061.3,6.53316]
[1720493514348,0.1101655,3061.4,3061.3,6.53316]
[1720493515791,0.1101655,3061.4,3061.3,7.08316]
[1720493515993,0.1101655,3061.4,3061.3,13.34974]
[1720493516199,1e-08,3061.4,3061.3,13.34974]
[1720493516696,1e-08,3061.4,3061.3,10.08316]
[1720493517164,1e-08,3061.4,3061.3,3.26658]
[1720493517372,1e-08,3061.4,3061.1,3.26678]
[1720493519073,1e-08,3061.4,3061.2,3.26666]
[1720493519546,1e-08,3061.4,3061.0,3.26681]
[1720493520240,1e-08,3061.4,3060.4,3.26747]
[1720493520241,2.28300001,3061.4,3060.4,3.26747]
[1720493520445,2.28300001,3061.4,3060.6,3.26726]
[1720493520666,2.28300001,3061.4,3060.7,0.06533409]
[1720493520876,2.28300001,3061.4,3061.1,3.26669]
[1720493521081,0.03651004,3061.3,3060.7,3.26719]
[1720493521257,0.03651004,3061.3,3060.3,3.26764]
[1720493521451,2.28300001,3061.4,3060.6,3.26724]
[1720493521758,0.03660878,3061.3,3060.7,3.26721]
[1720493522154,0.23196088,3061.3,3060.3,3.26764]
[1720493522355,2.28300001,3061.4,3060.6,3.26732]
[1720493522778,0.03651004,3061.3,3060.6,3.26732]
[1720493523076,2.28300001,3061.4,3060.6,3.26732]
[1720493523257,2.28300001,3061.4,3060.6,0.06533903]
[1720493523453,0.59160878,3061.3,3061.0,3.26687]
[1720493523694,0.59160878,3061.3,3061.1,0.06532903]
[1720493524000,0.59160878,3061.3,3061.0,3.26687]
[1720493524146,0.555,3061.3,3061.0,3.26687]
[1720493524650,0.555,3061.3,3060.7,3.26715]
[1720493524845,0.555,3061.3,3060.6,3.26731]
[1720493525048,0.555,3061.3,3060.2,3.0]
[1720493525049,0.2838,3061.2,3060.2,3.26769]
[1720493525449,2.4119,3061.1,3060.0,3.26794]
[1720493525645,2.4119,3061.1,3060.1,3.26783]
[1720493526480,0.03649783,3061.0,3060.0,3.26794]
[1720493526683,0.03649783,3061.0,3060.1,3.26785]
[1720493526984,0.30971761,3061.0,3059.7,3.26828]
[1720493527284,2.4119,3060.9,3060.0,3.26794]
[1720493527498,0.03649783,3061.0,3060.8,3.26704]
[1720493527683,0.555,3061.3,3060.9,3.33234149]
[1720493527851,0.555,3061.3,3061.1,3.26678]
[1720493528052,0.555,3061.3,3060.9,3.26695]
[1720493528397,0.555,3061.3,3060.2,3.26772]
[1720493528551,0.90719,3061.3,3060.3,6.26759]
[1720493528860,1.11,3061.3,3060.3,3.06534124]
[1720493529061,1.11,3061.3,3060.4,0.55]
[1720493529285,1.11,3061.3,3061.1,3.26677]
[1720493529610,1.11,3061.3,3060.8,3.26702]
[1720493529794,1.11,3061.3,3061.1,3.26669]
[1720493529951,1.11,3061.3,3061.2,3.26669]
[1720493530504,1.11,3061.3,3060.9,3.26697]
[1720493530730,1.11,3061.3,3060.7,3.2672]
[1720493530935,1.11,3061.3,3060.6,3.26732]
[1720493531078,1.51769,3061.3,3060.2,13.70766]
[1720493531276,1.51769,3061.3,3060.4,3.26753]
[1720493531583,1.11,3061.3,3060.8,3.26704]
[1720493531789,1.11,3061.3,3060.8,3.33237398]
[1720493532141,1.665,3061.3,3061.2,3.26669]
[1720493532405,1.665,3061.3,3061.0,3.26684]
[1720493532691,1.665,3061.3,3060.5,3.2674]
[1720493532856,1.665,3061.3,3060.7,3.26714]
[1720493533056,1.665,3061.3,3061.2,3.26669]
[1720493533258,1.665,3061.3,3061.2,10.35007]
[1720493533655,1.665,3061.3,3061.2,16.61676]
[1720493533896,1e-08,3061.4,3061.3,9.79974]
[1720493534192,1e-08,3061.4,3061.3,10.08316]
[1720493534380,2.3448,3061.9,3061.5,3.26635]
[1720493534561,2.3448,3061.9,3061.7,3.26611]
[1720493534787,2.3448,3061.9,3061.3,3.0]
[1720493535025,2.3448,3061.9,3061.8,3.26605]
[1720493535523,2.3248,3062.7,3062.0,3.26583]
[1720493535715,2.3248,3062.7,3062.3,3.26543]
[1720493535932,2.3248,3062.7,3062.4,3.2654]
[1720493539206,2.3248,3062.7,3061.9,3.26594]
[1720493539425,2.3248,3062.7,3062.0,3.26576]
[1720493539591,2.55728,3062.7,3061.4,6.81643]
[1720493539806,2.55728,3062.7,3061.5,3.26634]
[1720493540070,2.55728,3062.7,3061.6,3.26625]
[1720493540415,2.55728,3062.7,3061.0,3.26688]
[1720493540416,2.4498,3062.6,3061.0,3.26688]
[1720493540618,2.286,3062.3,3061.2,3.26668]
[1720493540877,2.4498,3062.2,3060.9,3.267]
[1720493541014,2.4498,3062.2,3060.1,11.74047937]
[1720493541015,2.4498,3062.2,3061.5,3.26629]
[1720493541370,2.4498,3062.2,3061.6,3.33148671]
[1720493541552,2.92338,3062.2,3061.3,3.26655]
[1720493541853,2.92338,3062.2,3061.3,3.26658]
[1720493542406,2.92338,3062.2,3061.1,3.26678]
[1720493542645,2.92338,3062.2,3060.7,3.26721]
[1720493542943,2.970738,3062.1,3060.8,3.2671]
[1720493543144,2.4498,3062.1,3061.1,3.26678]
[1720493543331,2.4498,3062.1,3061.4,3.26639]
[1720493543519,2.4498,3062.1,3061.4,3.33170999]
[1720493543908,5.71555,3062.1,3061.2,3.26667]
[1720493544315,5.71555,3062.1,3061.2,3.33199006]
[1720493544527,5.71555,3062.1,3061.2,3.26667]
[1720493544721,1.198118,3062.0,3061.2,3.26667]
[1720493544941,0.555,3061.3,3061.2,3.26667]
[1720493545345,0.555,3061.3,3061.2,6.53336]
[1720493545534,0.555,3061.3,3061.2,7.08336]
[1720493546025,0.555,3061.3,3061.2,3.81667]
[1720493546228,0.555,3061.3,3060.4,0.66942671]
[1720493546414,0.555,3061.3,3060.8,3.26702]
[1720493546614,0.555,3061.3,3060.9,3.26698]
[1720493547251,0.555,3061.3,3061.2,3.26669]
[1720493547455,1.11,3061.3,3061.2,3.26669]
[1720493548153,1.11,3061.3,3060.9,3.26698]
[1720493548339,1.11,3061.3,3060.8,3.26707]
[1720493549420,1.11,3061.3,3060.9,3.267]
[1720493550160,1.665,3061.3,3060.7,3.26715]
[1720493550461,4.0759,3061.3,3060.6,3.26729]
[1720493550630,4.2424,3061.3,3060.6,3.26729]
[1720493550830,4.2424,3061.3,3060.7,3.26721]
[1720493551035,4.0759,3061.3,3060.8,3.26706]
[1720493552879,4.6309,3061.3,3060.9,3.267]
[1720493553165,4.6309,3061.3,3060.8,3.26706]
[1720493553397,7.89753,3061.3,3060.2,3.26767]
[1720493553521,3.26689,3061.1,3060.1,3.26785]
[1720493553720,3.26689,3061.1,3059.9,3.26807]
[1720493553721,3.26703,3060.9,3059.9,3.26807]
[1720493554038,3.26689,3061.1,3059.7,3.26829]
[1720493554039,3.26752,3060.5,3059.7,3.26829]
[1720493554351,2.4844,3060.7,3059.9,3.26807]
[1720493554561,2.4844,3060.7,3060.0,0.06534667]
[1720493554776,2.4844,3060.7,3060.4,3.26753]
[1720493555126,2.4844,3060.7,3060.2,3.3330828]
[1720493555359,2.4844,3060.7,3060.3,0.0653428]
[1720493555661,2.4844,3060.7,3060.4,3.26754]
[1720493556537,2.4844,3060.7,3060.5,3.33273283]
[1720493556743,2.3986,3061.2,3060.5,3.33273283]
[1720493557262,5.6653,3061.2,3060.5,0.06534283]
[1720493558155,3.26681,3061.1,3060.2,3.26773]
[1720493558338,3.26691,3061.0,3060.0,0.06534111]
[1720493558733,3.26702,3060.9,3060.0,3.26792]
[1720493558933,3.26691,3061.0,3060.1,0.06534773]
[1720493559136,0.65704555,3061.0,3060.2,3.26775]
[1720493559328,0.65704555,3061.0,3060.3,0.06534532]
[1720493559771,3.92401555,3061.0,3060.0,3.26789]
[1720493559974,3.26702,3060.9,3060.0,3.26789]
[1720493560175,3.26702,3060.9,3060.1,3.26783]
[1720493560673,3.26704,3060.9,3060.0,3.26789]
[1720493560877,3.75494111,3060.9,3060.0,3.26789]
[1720493561876,3.26715,3060.8,3059.8,3.26818]
[1720493562261,2.3373,3060.5,3059.6,3.26831]
[1720493562463,2.3373,3060.5,3059.4,1.309944]
[1720493562779,2.3373,3060.5,3058.7,8.11083253]
[1720493562780,3.26756,3060.4,3059.0,0.06535511]
[1720493562972,3.26756,3060.4,3059.2,1.310064]
[1720493563169,2.3373,3060.5,3059.7,3.26828]
[1720493563478,3.26756,3060.4,3059.5,3.2684]
[1720493563664,6.165207,3060.5,3059.7,3.26825]
[1720493564777,2.3373,3060.5,3060.1,3.26784]
[1720493564954,2.3373,3060.5,3059.9,3.26801]
[1720493565156,2.3373,3060.5,3060.0,0.55]
[1720493566160,2.3373,3060.5,3060.0,3.81797]
[1720493566363,2.3373,3060.5,3060.1,3.26785]
[1720493566582,2.3373,3060.5,3060.0,3.81797]
[1720493566784,2.3373,3060.5,3060.1,3.26784]
[1720493567082,2.3373,3060.5,3060.1,3.33318763]
[1720493567289,2.3373,3060.5,3060.0,3.81797]
[1720493567465,2.3373,3060.5,3060.1,3.26783]
[1720493567664,2.3373,3060.5,3060.1,3.33317764]
[1720493568765,2.3309,3061.2,3060.4,3.26754]
[1720493568965,3.26681,3061.1,3060.5,0.06534149]
[1720493569169,3.26681,3061.1,3060.0,3.81793]
[1720493569756,3.26715,3060.8,3060.0,0.55]
[1720493569959,3.26715,3060.8,3060.0,3.81789]
[1720493570571,2.4822,3060.6,3059.8,3.26811]
[1720493572682,2.4822,3060.6,3059.9,3.26804]
[1720493572887,5.74953,3060.6,3059.6,6.53669]
[1720493573072,3.26756,3060.4,3059.6,3.26833]
[1720493573781,3.26776,3060.2,3059.2,3.26881]
[1720493573983,5.70909,3060.0,3059.0,4.579134]
[1720493574196,3.2682,3059.8,3059.0,3.26903]
[1720493574416,3.26818,3059.9,3059.0,3.26903]
[1720493574577,2.4411,3060.0,3059.2,3.26881]
[1720493574891,5.70909,3060.0,3059.2,3.26881]
[1720493575073,2.4411,3060.0,3059.2,3.26881]
[1720493575275,5.70908,3060.0,3059.2,3.26881]
[1720493575492,5.7091,3060.0,3059.2,3.26881]
[1720493575796,5.70911,3060.0,3059.2,3.26881]
[1720493576387,6.606808,3060.0,3059.2,3.26881]
[1720493578367,3.338798,3060.0,3059.3,3.26866]